Workbook

Sheet robot

Sheet plot
C2: zoom | D2: shift x | E2: shift y | G2: data points | H2: =1+MAX(IF(H26:H65531<>0,ROW(H26:H65531),0))-ROW(H26) -> 5 | I2: <- array formula! | K2: cage | N2: screen | S2: vect | T2: _tmz_y | U2: _tmz_x | V2: vectxc | W2: tmx x | X2: tick label x | Y2: xsx | Z2: ysx | AA2: vectyc | AB2: tmy y | AC2: tick label y | AD2: xsy | AE2: ysy | AF2: vectzc | AG2: tmz z | AH2: tick label z | AI2: xsz | AJ2: ysz
C3: 0 | D3: 50 | E3: 50 | K3: x | L3: y | M3: z | N3: xs_cage | O3: ys_cage | S3: 0 | T3: 0.5 | U3: -0.5 | V3: =IF($S3>H$17,H$17,$S3) -> 0 | W3: =H$18+V3*H$19 -> -0.3 | Y3: =(W3*$H$7+T3*$I$7+U3*$J$7+$D$4)*$C$4 -> 0.5724523534 | Z3: =(W3*$H$8+T3*$I$8+U3*$J$8+$E$4)*$C$4 -> -0.3775638446 | AA3: =IF($S3>I$17,I$17,$S3) -> 0 | AB3: =I$18+AA3*I$19 -> -0.3006644518 | AD3: =(T3*$H$7+AB3*$I$7+U3*$J$7+$D$4)*$C$4 -> -0.4535422384 | AE3: =(T3*$H$8+AB3*$I$8+U3*$J$8+$E$4)*$C$4 -> -0.6165192076 | AF3: =IF($S3>J$17,J$17,$S3) -> 0 | AG3: =J$18+AF3*J$19 -> -0.3 | AI3: =(U3*$H$7+T3*$I$7+AG3*$J$7+$D$4)*$C$4 -> 0.6408563821 | AJ3: =(U3*$H$8+T3*$I$8+AG3*$J$8+$E$4)*$C$4 -> -0.1103895018
C4: =(1+C3/50)^2 -> 1 | D4: =D3/100-0.5 -> 0 | E4: =-E3/100+0.5 -> 0 | G4: rotation matrix | K4: 0.5 | L4: -0.5 | M4: -0.5 | N4: =(K4*$H$7+L4*$I$7+M4*$J$7+$D$4)*$C$4 -> -0.6408563821 | O4: =(K4*$H$8+L4*$I$8+M4*$J$8+$E$4)*$C$4 -> -0.5824308213 | S4: 0 | T4: 0.6 | U4: -0.5 | V4: 0 | W4: -0.3 | X4: =H$16+V4*H$15 -> 1 | Y4: 0.6664216155 | Z4: -0.3946648518 | AA4: 0 | AB4: -0.3006644518 | AC4: =I$16+AA4*I$15 -> 0.6 | AD4: -0.4877442527 | AE4: -0.6635038387 | AF4: 0 | AG4: -0.3 | AH4: =J$16+AF4*J$15 -> 8 | AI4: 0.7348256441 | AJ4: -0.1274905089
G5: sin a | H5: =SIN(RADIANS(C13)) -> 0.8660254038 | I5: =SIN(RADIANS(D13)) -> 1.225148455e-16 | J5: =SIN(RADIANS(E13)) -> 0.9396926208 | K5: -0.5 | L5: -0.5 | M5: -0.5 | N5: -0.2988362387 | O5: -0.1125845109 | S5: 0 | T5: 0.5 | U5: -0.5 | V5: 0 | W5: -0.3 | Y5: 0.5724523534 | Z5: -0.3775638446 | AA5: 0 | AB5: -0.3006644518 | AD5: -0.4535422384 | AE5: -0.6165192076 | AF5: 0 | AG5: -0.3 | AI5: 0.6408563821 | AJ5: -0.1103895018
G6: cos a | H6: =COS(RADIANS(C13)) -> -0.5 | I6: =COS(RADIANS(D13)) -> -1 | J6: =COS(RADIANS(E13)) -> 0.3420201433 | K6: -0.5 | L6: -0.5 | M6: 0.5 | N6: -0.2988362387 | O6: 0.7534408929 | S6: 1 | T6: 0.5 | U6: -0.5 | V6: 1 | W6: -0.1 | Y6: 0.5040483247 | Z6: -0.4715331067 | AA6: 1 | AB6: -0.1013289037 | AD6: -0.2662280947 | AE6: -0.650607594 | AF6: 1 | AG6: -0.1 | AI6: 0.6408563821 | AJ6: 0.06281557899
G7: rot 1 | H7: =I6*J6*H12 -> -0.3420201433 | I7: =-J5*I6*I12 -> 0.9396926208 | J7: =I5*J12 -> 1.225148455e-16 | K7: 0.5 | L7: -0.5 | M7: 0.5 | N7: -0.6408563821 | O7: 0.2835945825 | S7: 1 | T7: 0.6 | U7: -0.5 | V7: 1 | W7: -0.1 | X7: =H$16+V7*H$15 -> 2 | Y7: 0.5980175868 | Z7: -0.4886341139 | AA7: 1 | AB7: -0.1013289037 | AC7: =I$16+AA7*I$15 -> 1.2 | AD7: -0.300430109 | AE7: -0.6975922251 | AF7: 1 | AG7: -0.1 | AH7: =J$16+AF7*J$15 -> 16 | AI7: 0.7348256441 | AJ7: 0.04571457182
G8: rot 2 | H8: =(J6*I5*H5+J5*H6)*H12 -> -0.4698463104 | I8: =(-J5*I5*H5+J6*H6)*I12 -> -0.1710100717 | J8: =-I6*H5*J12 -> 0.8660254038 | K8: 0.5 | L8: -0.5 | M8: -0.5 | N8: -0.6408563821 | O8: -0.5824308213 | S8: 1 | T8: 0.5 | U8: -0.5 | V8: 1 | W8: -0.1 | Y8: 0.5040483247 | Z8: -0.4715331067 | AA8: 1 | AB8: -0.1013289037 | AD8: -0.2662280947 | AE8: -0.650607594 | AF8: 1 | AG8: -0.1 | AI8: 0.6408563821 | AJ8: 0.06281557899
G9: data normalisation | K9: 0.5 | L9: 0.5 | M9: -0.5 | N9: 0.2988362387 | O9: -0.7534408929 | S9: 2 | T9: 0.5 | U9: -0.5 | V9: 2 | W9: 0.1 | Y9: 0.4356442961 | Z9: -0.5655023688 | AA9: 2 | AB9: 0.09800664452 | AD9: -0.07891395102 | AE9: -0.6846959804 | AF9: 2 | AG9: 0.1 | AI9: 0.6408563821 | AJ9: 0.2360206597
B10: rotate x | G10: min | H10: =MIN(C26:C30) -> 0 | I10: =MIN(D26:D30) -> 0 | J10: =MIN(E26:E30) -> 0 | K10: -0.5 | L10: 0.5 | M10: -0.5 | N10: 0.6408563821 | O10: -0.2835945825 | S10: 2 | T10: 0.6 | U10: -0.5 | V10: 2 | W10: 0.1 | X10: =H$16+V10*H$15 -> 3 | Y10: 0.5296135581 | Z10: -0.5826033759 | AA10: 2 | AB10: 0.09800664452 | AC10: =I$16+AA10*I$15 -> 1.8 | AD10: -0.1131159654 | AE10: -0.7316806114 | AF10: 2 | AG10: 0.1 | AH10: =J$16+AF10*J$15 -> 24 | AI10: 0.7348256441 | AJ10: 0.2189196526
B11: rotate y | G11: range | H11: =MAX(C26:C30)-H10 -> 5 | I11: =MAX(D26:D30)-I10+0.01 -> 3.01 | J11: =MAX(E26:E30)-J10 -> 40 | K11: -0.5 | L11: 0.5 | M11: 0.5 | N11: 0.6408563821 | O11: 0.5824308213 | S11: 2 | T11: 0.5 | U11: -0.5 | V11: 2 | W11: 0.1 | Y11: 0.4356442961 | Z11: -0.5655023688 | AA11: 2 | AB11: 0.09800664452 | AD11: -0.07891395102 | AE11: -0.6846959804 | AF11: 2 | AG11: 0.1 | AI11: 0.6408563821 | AJ11: 0.2360206597
B12: rotate z | G12: to-scale-ratios | H12: =IF(D23,H11/MAX($H11:$J11),1) -> 1 | I12: =IF(D23,I11/MAX($H11:$J11),1) -> 1 | J12: =IF(D23,J11/MAX($H11:$J11),1) -> 1 | K12: -0.5 | L12: -0.5 | M12: 0.5 | N12: -0.2988362387 | O12: 0.7534408929 | S12: 3 | T12: 0.5 | U12: -0.5 | V12: 3 | W12: 0.3 | Y12: 0.3672402674 | Z12: -0.6594716308 | AA12: 3 | AB12: 0.2973421927 | AD12: 0.1084001927 | AE12: -0.7187843668 | AF12: 3 | AG12: 0.3 | AI12: 0.6408563821 | AJ12: 0.4092257405
B13: angles | C13: 120 | D13: 180 | E13: 70 | G13: tick marks | K13: -0.5 | L13: -0.5 | M13: -0.5 | N13: -0.2988362387 | O13: -0.1125845109 | S13: 3 | T13: 0.6 | U13: -0.5 | V13: 3 | W13: 0.3 | X13: =H$16+V13*H$15 -> 4 | Y13: 0.4612095295 | Z13: -0.676572638 | AA13: 3 | AB13: 0.2973421927 | AC13: =I$16+AA13*I$15 -> 2.4 | AD13: 0.07419817832 | AE13: -0.7657689978 | AF13: 3 | AG13: 0.3 | AH13: =J$16+AF13*J$15 -> 32 | AI13: 0.7348256441 | AJ13: 0.3921247333
B14: planes | C14: 0 | D14: 0 | E14: 0 | G14: fract | H14: =H11/5 -> 1 | I14: =I11/5 -> 0.602 | J14: =J11/5 -> 8 | K14: -0.5 | L14: 0.5 | M14: -0.5 | N14: 0.6408563821 | O14: -0.2835945825 | S14: 3 | T14: 0.5 | U14: -0.5 | V14: 3 | W14: 0.3 | Y14: 0.3672402674 | Z14: -0.6594716308 | AA14: 3 | AB14: 0.2973421927 | AD14: 0.1084001927 | AE14: -0.7187843668 | AF14: 3 | AG14: 0.3 | AI14: 0.6408563821 | AJ14: 0.4092257405
G15: ts tick mark step width | H15: =ROUND(H14,1-INT(LOG(ABS(H14))+1)) -> 1 | I15: =ROUND(I14,1-INT(LOG(ABS(I14))+1)) -> 0.6 | J15: =ROUND(J14,1-INT(LOG(ABS(J14))+1)) -> 8 | S15: 4 | T15: 0.5 | U15: -0.5 | V15: 4 | W15: 0.5 | Y15: 0.2988362387 | Z15: -0.7534408929 | AA15: 4 | AB15: 0.4966777409 | AD15: 0.2957143363 | AE15: -0.7528727531 | AF15: 4 | AG15: 0.5 | AI15: 0.6408563821 | AJ15: 0.5824308213
B16: cut plane YZ | G16: ft location first tick mark | H16: =H15*(INT(H10/H15)+1) -> 1 | I16: =I15*(INT(I10/I15)+1) -> 0.6 | J16: =J15*(INT(J10/J15)+1) -> 8 | K16: cut plane frame | M16: cut plane x frame | O16: cut plane y frame | Q16: cut plane z frame | S16: 4 | T16: 0.6 | U16: -0.5 | V16: 4 | W16: 0.5 | X16: =H$16+V16*H$15 -> 5 | Y16: 0.3928055008 | Z16: -0.7705419001 | AA16: 4 | AB16: 0.4966777409 | AC16: =I$16+AA16*I$15 -> 3 | AD16: 0.261512322 | AE16: -0.7998573842 | AF16: 4 | AG16: 0.5 | AH16: =J$16+AF16*J$15 -> 40 | AI16: 0.7348256441 | AJ16: 0.5653298141
B17: cut plane XZ | G17: tx number of tick marks | H17: =INT((H11+H10-H16)/H15) -> 4 | I17: =INT((I11+I10-I16)/I15) -> 4 | J17: =INT((J11+J10-J16)/J15) -> 4 | K17: plane 1 | L17: plane 2 | S17: 4 | T17: 0.5 | U17: -0.5 | V17: 4 | W17: 0.5 | Y17: 0.2988362387 | Z17: -0.7534408929 | AA17: 4 | AB17: 0.4966777409 | AD17: 0.2957143363 | AE17: -0.7528727531 | AF17: 4 | AG17: 0.5 | AI17: 0.6408563821 | AJ17: 0.5824308213
B18: cut plane XY | G18: ftn normalised location first tick mark | H18: =(H16-H10)/H11-0.5 -> -0.3 | I18: =(I16-I10)/I11-0.5 -> -0.3006644518 | J18: =(J16-J10)/J11-0.5 -> -0.3 | K18: -0.5 | L18: -0.5 | M18: =(H$21*$H$7+K18*$I$7+L18*$J$7+$D$4)*$C$4 -> -0.2988362387 | N18: =(H$21*$H$8+K18*$I$8+L18*$J$8+$E$4)*$C$4 -> -0.1125845109 | O18: =(K18*$H$7+I$21*$I$7+L18*$J$7+$D$4)*$C$4 -> -0.2988362387 | P18: =(K18*$H$8+I$21*$I$8+L18*$J$8+$E$4)*$C$4 -> -0.1125845109 | Q18: =(K18*$H$7+L18*$I$7+J$21*$J$7+$D$4)*$C$4 -> -0.2988362387 | R18: =(K18*$H$8+L18*$I$8+J$21*$J$8+$E$4)*$C$4 -> -0.1125845109 | S18: 5 | T18: 0.5 | U18: -0.5 | V18: 4 | W18: 0.5 | Y18: 0.2988362387 | Z18: -0.7534408929 | AA18: 4 | AB18: 0.4966777409 | AD18: 0.2957143363 | AE18: -0.7528727531 | AF18: 4 | AG18: 0.5 | AI18: 0.6408563821 | AJ18: 0.5824308213
D19: FALSE | G19: tsn normalised tick mark step width | H19: =H15/H11 -> 0.2 | I19: =I15/I11 -> 0.1993355482 | J19: =J15/J11 -> 0.2 | K19: 0.5 | L19: -0.5 | M19: =(H$21*$H$7+K19*$I$7+L19*$J$7+$D$4)*$C$4 -> 0.6408563821 | N19: =(H$21*$H$8+K19*$I$8+L19*$J$8+$E$4)*$C$4 -> -0.2835945825 | O19: =(K19*$H$7+I$21*$I$7+L19*$J$7+$D$4)*$C$4 -> -0.6408563821 | P19: =(K19*$H$8+I$21*$I$8+L19*$J$8+$E$4)*$C$4 -> -0.5824308213 | Q19: =(K19*$H$7+L19*$I$7+J$21*$J$7+$D$4)*$C$4 -> -0.6408563821 | R19: =(K19*$H$8+L19*$I$8+J$21*$J$8+$E$4)*$C$4 -> -0.5824308213 | S19: 5 | T19: 0.6 | U19: -0.5 | V19: 4 | W19: 0.5 | X19: =H$16+V19*H$15 -> 5 | Y19: 0.3928055008 | Z19: -0.7705419001 | AA19: 4 | AB19: 0.4966777409 | AC19: =I$16+AA19*I$15 -> 3 | AD19: 0.261512322 | AE19: -0.7998573842 | AF19: 4 | AG19: 0.5 | AH19: =J$16+AF19*J$15 -> 40 | AI19: 0.7348256441 | AJ19: 0.5653298141
B20: zoom | G20: cut planes | K20: 0.5 | L20: 0.5 | M20: =(H$21*$H$7+K20*$I$7+L20*$J$7+$D$4)*$C$4 -> 0.6408563821 | N20: =(H$21*$H$8+K20*$I$8+L20*$J$8+$E$4)*$C$4 -> 0.5824308213 | O20: =(K20*$H$7+I$21*$I$7+L20*$J$7+$D$4)*$C$4 -> -0.6408563821 | P20: =(K20*$H$8+I$21*$I$8+L20*$J$8+$E$4)*$C$4 -> 0.2835945825 | Q20: =(K20*$H$7+L20*$I$7+J$21*$J$7+$D$4)*$C$4 -> 0.2988362387 | R20: =(K20*$H$8+L20*$I$8+J$21*$J$8+$E$4)*$C$4 -> -0.7534408929 | S20: 5 | T20: 0.5 | U20: -0.5 | V20: 4 | W20: 0.5 | Y20: 0.2988362387 | Z20: -0.7534408929 | AA20: 4 | AB20: 0.4966777409 | AD20: 0.2957143363 | AE20: -0.7528727531 | AF20: 4 | AG20: 0.5 | AI20: 0.6408563821 | AJ20: 0.5824308213
B21: shift x | G21: cp normalised position | H21: =C14/100-0.5 -> -0.5 | I21: =D14/100-0.5 -> -0.5 | J21: =E14/100-0.5 -> -0.5 | K21: -0.5 | L21: 0.5 | M21: =(H$21*$H$7+K21*$I$7+L21*$J$7+$D$4)*$C$4 -> -0.2988362387 | N21: =(H$21*$H$8+K21*$I$8+L21*$J$8+$E$4)*$C$4 -> 0.7534408929 | O21: =(K21*$H$7+I$21*$I$7+L21*$J$7+$D$4)*$C$4 -> -0.2988362387 | P21: =(K21*$H$8+I$21*$I$8+L21*$J$8+$E$4)*$C$4 -> 0.7534408929 | Q21: =(K21*$H$7+L21*$I$7+J$21*$J$7+$D$4)*$C$4 -> 0.6408563821 | R21: =(K21*$H$8+L21*$I$8+J$21*$J$8+$E$4)*$C$4 -> -0.2835945825 | S21: 6 | T21: 0.5 | U21: -0.5 | V21: 4 | W21: 0.5 | Y21: 0.2988362387 | Z21: -0.7534408929 | AA21: 4 | AB21: 0.4966777409 | AD21: 0.2957143363 | AE21: -0.7528727531 | AF21: 4 | AG21: 0.5 | AI21: 0.6408563821 | AJ21: 0.5824308213
B22: shift y | K22: -0.5 | L22: -0.5 | M22: =(H$21*$H$7+K22*$I$7+L22*$J$7+$D$4)*$C$4 -> -0.2988362387 | N22: =(H$21*$H$8+K22*$I$8+L22*$J$8+$E$4)*$C$4 -> -0.1125845109 | O22: =(K22*$H$7+I$21*$I$7+L22*$J$7+$D$4)*$C$4 -> -0.2988362387 | P22: =(K22*$H$8+I$21*$I$8+L22*$J$8+$E$4)*$C$4 -> -0.1125845109 | Q22: =(K22*$H$7+L22*$I$7+J$21*$J$7+$D$4)*$C$4 -> -0.2988362387 | R22: =(K22*$H$8+L22*$I$8+J$21*$J$8+$E$4)*$C$4 -> -0.1125845109 | S22: 6 | T22: 0.6 | U22: -0.5 | V22: 4 | W22: 0.5 | X22: =H$16+V22*H$15 -> 5 | Y22: 0.3928055008 | Z22: -0.7705419001 | AA22: 4 | AB22: 0.4966777409 | AC22: =I$16+AA22*I$15 -> 3 | AD22: 0.261512322 | AE22: -0.7998573842 | AF22: 4 | AG22: 0.5 | AH22: =J$16+AF22*J$15 -> 40 | AI22: 0.7348256441 | AJ22: 0.5653298141
D23: FALSE | S23: 6 | T23: 0.5 | U23: -0.5 | V23: 4 | W23: 0.5 | Y23: 0.2988362387 | Z23: -0.7534408929 | AA23: 4 | AB23: 0.4966777409 | AD23: 0.2957143363 | AE23: -0.7528727531 | AF23: 4 | AG23: 0.5 | AI23: 0.6408563821 | AJ23: 0.5824308213
H24: norm | K24: screen | M24: cut plane x | O24: cut plane y | Q24: cut plane z
B25: labels | C25: x | D25: y | E25: z | F25: 4th dim. | G25: z drop lines | H25: x norm | I25: y norm | J25: z norm | K25: xs | L25: ys | M25: _xs_cpx | N25: _ys_cpx | O25: _xs_cpy | P25: _ys_cpy | Q25: _xs_cpz | R25: _ys_cpz
B26: 0 | C26: 0 | D26: 0 | E26: 0 | G26: =D$19*(L26-R26) -> 0 | H26: =(C26-H$10)/H$11-0.5 -> -0.5 | I26: -0.5 | J26: -0.5 | K26: =(H26*$H$7+I26*$I$7+J26*$J$7+$D$4)*$C$4 -> -0.2988362387 | L26: =(H26*$H$8+I26*$I$8+J26*$J$8+$E$4)*$C$4 -> -0.1125845109 | M26: =(H$21*$H$7+I26*$I$7+J26*$J$7+$D$4)*$C$4 -> -0.2988362387 | N26: =(H$21*$H$8+I26*$I$8+J26*$J$8+$E$4)*$C$4 -> -0.1125845109 | O26: =(H26*$H$7+I$21*$I$7+J26*$J$7+$D$4)*$C$4 -> -0.2988362387 | P26: =(H26*$H$8+I$21*$I$8+J26*$J$8+$E$4)*$C$4 -> -0.1125845109 | Q26: =(H26*$H$7+I26*$I$7+J$21*$J$7+$D$4)*$C$4 -> -0.2988362387 | R26: =(H26*$H$8+I26*$I$8+J$21*$J$8+$E$4)*$C$4 -> -0.1125845109
B27: 1 | C27: 0 | D27: 0 | E27: 40 | G27: =D$19*(L27-R27) -> 0 | H27: -0.5 | I27: -0.5 | J27: 0.5 | K27: =(H27*$H$7+I27*$I$7+J27*$J$7+$D$4)*$C$4 -> -0.2988362387 | L27: =(H27*$H$8+I27*$I$8+J27*$J$8+$E$4)*$C$4 -> 0.7534408929 | M27: =(H$21*$H$7+I27*$I$7+J27*$J$7+$D$4)*$C$4 -> -0.2988362387 | N27: =(H$21*$H$8+I27*$I$8+J27*$J$8+$E$4)*$C$4 -> 0.7534408929 | O27: =(H27*$H$7+I$21*$I$7+J27*$J$7+$D$4)*$C$4 -> -0.2988362387 | P27: =(H27*$H$8+I$21*$I$8+J27*$J$8+$E$4)*$C$4 -> 0.7534408929 | Q27: =(H27*$H$7+I27*$I$7+J$21*$J$7+$D$4)*$C$4 -> -0.2988362387 | R27: =(H27*$H$8+I27*$I$8+J$21*$J$8+$E$4)*$C$4 -> -0.1125845109
B28: 2 | C28: 2 | D28: 2 | E28: 40 | G28: =D$19*(L28-R28) -> 0 | H28: -0.1 | I28: 0.1644518272 | J28: 0.5 | K28: =(H28*$H$7+I28*$I$7+J28*$J$7+$D$4)*$C$4 -> 0.1887361829 | L28: =(H28*$H$8+I28*$I$8+J28*$J$8+$E$4)*$C$4 -> 0.4518744142 | M28: =(H$21*$H$7+I28*$I$7+J28*$J$7+$D$4)*$C$4 -> 0.3255442402 | N28: =(H$21*$H$8+I28*$I$8+J28*$J$8+$E$4)*$C$4 -> 0.6398129383 | O28: =(H28*$H$7+I$21*$I$7+J28*$J$7+$D$4)*$C$4 -> -0.4356442961 | P28: =(H28*$H$8+I$21*$I$8+J28*$J$8+$E$4)*$C$4 -> 0.5655023688 | Q28: =(H28*$H$7+I28*$I$7+J$21*$J$7+$D$4)*$C$4 -> 0.1887361829 | R28: =(H28*$H$8+I28*$I$8+J$21*$J$8+$E$4)*$C$4 -> -0.4141509896
B29: 3 | C29: 5 | D29: 3 | E29: 40 | G29: =D$19*(L29-R29) -> 0 | H29: 0.5 | I29: 0.4966777409 | J29: 0.5 | K29: =(H29*$H$7+I29*$I$7+J29*$J$7+$D$4)*$C$4 -> 0.2957143363 | L29: =(H29*$H$8+I29*$I$8+J29*$J$8+$E$4)*$C$4 -> 0.1131526506 | M29: =(H$21*$H$7+I29*$I$7+J29*$J$7+$D$4)*$C$4 -> 0.6377344797 | N29: =(H$21*$H$8+I29*$I$8+J29*$J$8+$E$4)*$C$4 -> 0.582998961 | O29: =(H29*$H$7+I$21*$I$7+J29*$J$7+$D$4)*$C$4 -> -0.6408563821 | P29: =(H29*$H$8+I$21*$I$8+J29*$J$8+$E$4)*$C$4 -> 0.2835945825 | Q29: =(H29*$H$7+I29*$I$7+J$21*$J$7+$D$4)*$C$4 -> 0.2957143363 | R29: =(H29*$H$8+I29*$I$8+J$21*$J$8+$E$4)*$C$4 -> -0.7528727531
B30: 4 | C30: 5 | D30: 3 | E30: 20 | G30: =D$19*(L30-R30) -> 0 | H30: 0.5 | I30: 0.4966777409 | J30: 0 | K30: =(H30*$H$7+I30*$I$7+J30*$J$7+$D$4)*$C$4 -> 0.2957143363 | L30: =(H30*$H$8+I30*$I$8+J30*$J$8+$E$4)*$C$4 -> -0.3198600513 | M30: =(H$21*$H$7+I30*$I$7+J30*$J$7+$D$4)*$C$4 -> 0.6377344797 | N30: =(H$21*$H$8+I30*$I$8+J30*$J$8+$E$4)*$C$4 -> 0.1499862591 | O30: =(H30*$H$7+I$21*$I$7+J30*$J$7+$D$4)*$C$4 -> -0.6408563821 | P30: =(H30*$H$8+I$21*$I$8+J30*$J$8+$E$4)*$C$4 -> -0.1494181194 | Q30: =(H30*$H$7+I30*$I$7+J$21*$J$7+$D$4)*$C$4 -> 0.2957143363 | R30: =(H30*$H$8+I30*$I$8+J$21*$J$8+$E$4)*$C$4 -> -0.7528727531
